bitfinex-derivatives/quotes_BTCF0:USTF0_20251109
["timestamp","ask_amount","ask_price","bid_price","bid_amount"]
[1762671565027,0.71361636,101800.0,101790.0,0.04346]
[1762671566426,0.1544551,101790.0,101780.0,0.51593385]
[1762671566633,0.23945811,101790.0,101780.0,0.15513385]
[1762671566934,0.32446112,101790.0,101780.0,0.15513385]
[1762671567819,0.31241112,101790.0,101780.0,0.15513385]
[1762671568019,0.22740811,101790.0,101780.0,0.15513385]
[1762671568428,0.22840811,101790.0,101780.0,0.15513385]
[1762671568631,0.13013301,101790.0,101780.0,0.15513385]
[1762671568830,0.13213301,101790.0,101780.0,0.15513385]
[1762671569834,0.23040811,101790.0,101780.0,0.15513385]
[1762671570432,0.23040811,101790.0,101780.0,0.51593385]
[1762671570934,0.13213301,101790.0,101780.0,0.51593385]
[1762671571832,0.23040811,101790.0,101780.0,0.51593385]
[1762671572838,0.1454051,101790.0,101780.0,0.51593385]
[1762671573026,0.23040811,101790.0,101780.0,0.51593385]
[1762671573436,0.13213301,101790.0,101780.0,0.51593385]
[1762671573635,0.08800301,101790.0,101780.0,0.51593385]
[1762671576841,0.11087301,101790.0,101780.0,0.51593385]
[1762671577339,0.13462809,101790.0,101780.0,0.51593385]
[1762671578043,0.11175809,101790.0,101780.0,0.51593385]
[1762671579241,0.13462809,101790.0,101780.0,0.51593385]
[1762671579442,0.11175809,101790.0,101780.0,0.51593385]
[1762671582550,0.15588809,101790.0,101780.0,0.51593385]
[1762671583542,0.13462809,101790.0,101780.0,0.51593385]
[1762671583744,0.11175809,101790.0,101780.0,0.51593385]
[1762671584145,0.15588809,101790.0,101780.0,0.51593385]
[1762671585352,0.11175809,101790.0,101780.0,0.51593385]
[1762671586853,0.15504809,101790.0,101780.0,0.51593385]
[1762671588055,0.11965607,101790.0,101780.0,0.51593385]
[1762671588259,0.07636607,101790.0,101780.0,0.51593385]
[1762671588449,0.09856607,101790.0,101780.0,0.51593385]
[1762671588649,0.11965607,101790.0,101780.0,0.51593385]
[1762671589760,0.07636607,101790.0,101780.0,0.51593385]
[1762671591247,0.11965607,101790.0,101780.0,0.51593385]
[1762671593358,0.07636607,101790.0,101780.0,0.51593385]
[1762671593554,0.12829301,101800.0,101790.0,0.1561751]
[1762671593851,0.08500301,101800.0,101790.0,0.5169751]
[1762671595059,0.10720301,101800.0,101790.0,0.5169751]
[1762671595760,0.10920301,101800.0,101790.0,0.5169751]
[1762671595956,0.13029301,101800.0,101790.0,0.5169751]
[1762671596152,0.13229301,101800.0,101790.0,0.5169751]
[1762671598260,0.11120301,101800.0,101790.0,0.5169751]
[1762671598463,0.13269301,101800.0,101790.0,0.5169751]
[1762671600062,0.15628545,101800.0,101790.0,0.5169751]
[1762671600260,0.25455095,101800.0,101790.0,0.5169751]
[1762671600562,0.15628545,101800.0,101790.0,0.5169751]
[1762671601363,0.13452545,101800.0,101790.0,0.5169751]
[1762671602068,0.15628545,101800.0,101790.0,0.5169751]
[1762671602462,0.13452545,101800.0,101790.0,0.5169751]
[1762671602665,0.11259545,101800.0,101790.0,0.5169751]
[1762671603054,0.15628545,101800.0,101790.0,0.5169751]
[1762671603566,0.13452545,101800.0,101790.0,0.5169751]
[1762671604262,0.11259545,101800.0,101790.0,0.5169751]
[1762671606357,0.07128244,101800.0,101790.0,0.5169751]
[1762671606664,0.15628545,101800.0,101790.0,0.5169751]
[1762671607464,0.11259545,101800.0,101790.0,0.5169751]
[1762671607665,0.15628545,101800.0,101790.0,0.5169751]
[1762671607966,0.24128846,101800.0,101790.0,0.5169751]
[1762671608265,0.33955396,101800.0,101790.0,0.5169751]
[1762671608566,0.33955396,101800.0,101790.0,0.1561751]
[1762671609657,0.33955396,101800.0,101790.0,0.5169751]
[1762671609858,0.24128846,101800.0,101790.0,0.5169751]
[1762671612266,0.33955396,101800.0,101790.0,0.5169751]
[1762671613065,0.24128846,101800.0,101790.0,0.5169751]
[1762671616469,0.18460644,101800.0,101790.0,0.5169751]
[1762671620062,0.28287194,101800.0,101790.0,0.5169751]
[1762671621666,0.18460644,101800.0,101790.0,0.5169751]
[1762671622667,0.16284644,101800.0,101790.0,0.5169751]
[1762671622867,0.18460644,101800.0,101790.0,0.5169751]
[1762671624077,0.14091644,101800.0,101790.0,0.5169751]
[1762671624370,0.18460644,101800.0,101790.0,0.5169751]
[1762671625774,0.18475644,101800.0,101790.0,0.5169751]
[1762671632479,0.16284644,101800.0,101790.0,0.5169751]
[1762671632679,0.14091644,101800.0,101790.0,0.5169751]
[1762671632878,0.18543644,101800.0,101790.0,0.5169751]
[1762671633183,0.28370194,101800.0,101790.0,0.5169751]
[1762671634484,0.18543644,101800.0,101790.0,0.5169751]
[1762671634979,0.07211244,101800.0,101790.0,0.5169751]
[1762671635578,0.02759244,101800.0,101790.0,0.5169751]
[1762671635781,0.00014705,101810.0,101800.0,0.1564155]
[1762671635984,0.00014705,101810.0,101800.0,0.5172155]
[1762671636178,0.02371706,101810.0,101800.0,0.5172155]
[1762671636885,0.00014705,101810.0,101800.0,0.58792329]
[1762671637979,0.6168837,101830.0,101820.0,0.1563962]
[1762671638179,0.64043287,101830.0,101820.0,0.1563962]
[1762671638687,0.54219317,101830.0,101820.0,0.1563962]
[1762671639183,0.06806917,101830.0,101820.0,0.1563962]
[1762671639382,0.07006917,101830.0,101820.0,0.1563962]
[1762671639582,0.28162977,101830.0,101820.0,0.1563962]
[1762671640084,0.28462977,101830.0,101820.0,0.1563962]
[1762671640689,0.18639317,101830.0,101820.0,0.1563962]
[1762671641584,0.18639317,101830.0,101820.0,0.23478546]
[1762671644384,0.28462977,101830.0,101820.0,0.23478546]
[1762671644687,0.04452,101820.0,101810.0,0.41909705]
[1762671644985,0.04452,101820.0,101810.0,0.51746285]
[1762671644986,0.157844,101820.0,101810.0,0.51746285]
[1762671646694,0.157844,101820.0,101810.0,0.59420168]
[1762671646885,0.159844,101820.0,101810.0,0.59420168]
[1762671647388,0.160844,101820.0,101810.0,0.59420168]
[1762671652690,0.18448287,101820.0,101810.0,0.59420168]
[1762671652891,0.28272907,101820.0,101810.0,0.59420168]
[1762671653897,0.28272907,101820.0,101810.0,0.49594588]
[1762671654290,0.28272907,101820.0,101810.0,0.59420178]
[1762671656205,0.18448287,101820.0,101810.0,0.59420178]
[1762671658005,0.28272907,101820.0,101810.0,0.59420178]
[1762671659504,0.28272907,101820.0,101810.0,0.13514588]
[1762671660196,0.28272907,101820.0,101810.0,0.23340178]
[1762671660603,0.80233237,101820.0,101810.0,0.00014705]
[1762671660909,0.80233237,101820.0,101800.0,0.1120429]
[1762671660910,0.1555655,101800.0,101790.0,0.0452]
[1762671661207,0.65332837,101800.0,101790.0,0.1434752]
[1762671662106,0.65332837,101800.0,101790.0,0.1570652]
[1762671662507,0.65332837,101800.0,101790.0,0.1580652]
[1762671663210,0.65332837,101800.0,101790.0,0.1590652]
[1762671664300,0.64127837,101800.0,101790.0,0.1590652]
[1762671670518,0.64127837,101800.0,101790.0,0.06079]
[1762671671613,0.65332837,101800.0,101790.0,0.1590652]
[1762671672617,0.52795437,101800.0,101790.0,0.1590652]
[1762671672811,0.64127837,101800.0,101790.0,0.1590652]
[1762671674012,0.18221287,101800.0,101790.0,0.1590652]
[1762671674214,0.18221287,101800.0,101790.0,0.5198652]
[1762671674215,0.158574,101800.0,101790.0,0.5198652]
[1762671674418,0.2568395,101800.0,101790.0,0.5198652]
[1762671674714,0.2568395,101800.0,101790.0,0.1590652]
[1762671676021,0.28034024,101800.0,101790.0,0.1590652]
[1762671677421,0.64114024,101800.0,101790.0,0.06079]
[1762671677616,0.65319024,101800.0,101790.0,0.06079]
[1762671678221,0.65319024,101800.0,101790.0,0.0472]
[1762671678420,0.70988422,101800.0,101790.0,0.0472]
[1762671680426,0.70988422,101800.0,101790.0,0.1454752]
[1762671681323,0.70988422,101800.0,101790.0,0.002]
[1762671681926,0.70988422,101800.0,101790.0,0.1454752]
[1762671682620,0.69783422,101800.0,101790.0,0.1590652]
[1762671683323,0.69783422,101800.0,101790.0,0.06079]
[1762671683721,0.70988422,101800.0,101790.0,0.06079]
[1762671684123,0.69783422,101800.0,101790.0,0.1590652]
[1762671685523,0.70988422,101800.0,101790.0,0.1590652]
[1762671685727,0.70988422,101800.0,101790.0,0.0472]
[1762671687226,0.70988422,101800.0,101790.0,0.1454752]
[1762671687417,0.70988422,101800.0,101790.0,0.0472]
[1762671688526,0.70988422,101800.0,101790.0,0.002]
[1762671688726,0.70988422,101800.0,101790.0,0.04819]
[1762671689127,0.74519032,101800.0,101790.0,0.04819]
[1762671689431,0.74519032,101800.0,101790.0,0.1464652]
[1762671690129,0.74519032,101800.0,101790.0,0.04819]
[1762671691234,0.73314032,101800.0,101790.0,0.1592352]
[1762671691529,0.74519032,101800.0,101790.0,0.02486]
[1762671692131,0.74519032,101800.0,101790.0,0.1231352]
[1762671692348,0.74519032,101800.0,101790.0,0.1464652]
[1762671692732,0.74519032,101800.0,101790.0,0.04819]
[1762671694434,0.74519032,101800.0,101790.0,0.1464652]
[1762671694624,0.74519032,101800.0,101790.0,0.04819]
[1762671696540,0.74519032,101800.0,101790.0,0.02486]
[1762671696940,0.74519032,101800.0,101790.0,0.002]
[1762671698037,0.74519032,101800.0,101790.0,0.02486]
[1762671698937,0.74519032,101800.0,101790.0,0.04819]
[1762671699441,0.74519032,101800.0,101790.0,0.02486]
[1762671699737,0.74519032,101800.0,101790.0,0.002]
[1762671700234,0.83019931,101800.0,101790.0,0.002]
[1762671700440,1.03094587,101800.0,101790.0,0.002]
[1762671701334,1.03094587,101800.0,101790.0,0.001]
[1762671701537,1.03094587,101800.0,101790.0,0.02386]
[1762671701937,0.94593688,101800.0,101790.0,0.02386]
[1762671702440,0.94593688,101800.0,101790.0,0.02286]
[1762671702935,0.1536751,101790.0,101780.0,0.15739125]
[1762671703141,0.62298483,101790.0,101780.0,0.12129125]
[1762671703640,0.62298483,101790.0,101780.0,0.00014705]
[1762671703839,0.70799382,101790.0,101780.0,0.02300705]
[1762671704137,0.70799382,101790.0,101780.0,0.00214705]
[1762671704341,0.70799382,101790.0,101780.0,0.04833705]
[1762671704525,0.70799382,101790.0,101780.0,0.00214705]
[1762671705940,0.70799382,101790.0,101780.0,0.04676705]
[1762671706326,0.70799382,101790.0,101780.0,0.02500705]
[1762671706530,0.70799382,101790.0,101780.0,0.00214705]
[1762671712053,0.1529341,101760.0,101750.0,0.1540512]
[1762671712344,0.34645282,101760.0,101750.0,0.1540512]
[1762671712546,0.33440282,101760.0,101750.0,0.1540512]
[1762671712742,0.33440282,101760.0,101750.0,0.05574]
[1762671713048,0.33440282,101760.0,101750.0,0.1540537]
[1762671713243,0.33440282,101760.0,101750.0,0.1590537]
[1762671713948,0.31090208,101760.0,101750.0,0.1590537]
[1762671715246,0.31090208,101760.0,101750.0,0.06074]
[1762671715746,0.31090208,101760.0,101750.0,0.1590537]
[1762671717247,0.31090208,101760.0,101750.0,0.5198537]
[1762671717443,0.31090208,101760.0,101750.0,0.1590537]
[1762671718353,0.04258,101760.0,101750.0,0.1590537]
[1762671718648,0.22589299,101760.0,101750.0,0.5198537]
[1762671719247,0.70442899,101760.0,101750.0,0.005]
[1762671719443,0.70442899,101760.0,101750.0,0.06192]
[1762671720045,0.70442899,101760.0,101750.0,0.0486]
[1762671720247,0.70442899,101760.0,101750.0,0.0466]
[1762671720453,0.70442899,101760.0,101750.0,0.0476]
[1762671721147,0.70442899,101760.0,101750.0,0.004]
[1762671721352,0.78943798,101760.0,101750.0,0.002]
[1762671721546,0.70442899,101760.0,101750.0,0.002]
[1762671727050,0.34362899,101760.0,101750.0,0.002]
[1762671727255,0.70442899,101760.0,101750.0,0.002]
[1762671729758,0.1524833,101740.0,101730.0,0.515793]
[1762671729958,0.32250128,101740.0,101730.0,0.515793]
[1762671730951,0.142583,101730.0,101720.0,0.51586515]
[1762671731151,0.12925899,101730.0,101720.0,0.51586515]
[1762671731357,0.12725899,101730.0,101720.0,0.51586515]
[1762671731756,0.22259199,101730.0,101720.0,0.51586515]
[1762671732157,0.12425899,101730.0,101720.0,0.51586515]
[1762671732562,0.12425899,101730.0,101720.0,0.52286515]
[1762671735456,0.22259199,101730.0,101720.0,0.52286515]
[1762671737661,0.22259199,101730.0,101720.0,0.52086515]
[1762671737860,0.22259199,101730.0,101720.0,0.51786515]
[1762671738362,0.25105729,101730.0,101720.0,0.51786515]
[1762671739148,0.137583,101730.0,101720.0,0.51786515]
[1762671739354,0.15272429,101730.0,101720.0,0.51786515]
[1762671739562,0.25105729,101730.0,101720.0,0.51786515]
[1762671739864,0.21179779,101740.0,101720.0,0.51786515]
[1762671740162,0.18132416,101740.0,101730.0,0.516053]
[1762671740565,0.06784987,101740.0,101730.0,0.516053]
[1762671741367,0.18132416,101740.0,101730.0,0.516053]
[1762671742164,0.27964746,101740.0,101730.0,0.516053]
[1762671743465,0.06784987,101740.0,101730.0,0.516053]
[1762671743672,0.02143,101740.0,101730.0,0.516053]
[1762671743966,0.04425,101740.0,101730.0,0.516053]
[1762671745664,0.04459705,101750.0,101740.0,0.05899]
[1762671745863,0.04459705,101750.0,101740.0,0.5181133]
[1762671745864,0.06822477,101750.0,101740.0,0.5181133]
[1762671746971,0.06922477,101750.0,101740.0,0.5181133]
[1762671747482,0.07122477,101750.0,101740.0,0.5181133]
[1762671747670,0.02677477,101750.0,101740.0,0.5181133]
[1762671747860,0.18469906,101750.0,101740.0,0.5181133]
[1762671748059,0.28301276,101750.0,101740.0,0.5181133]
[1762671748369,0.18469906,101750.0,101740.0,0.5181133]
[1762671749771,0.07122477,101750.0,101740.0,0.5181133]
[1762671754176,0.18469906,101750.0,101740.0,0.5181133]
[1762671755778,0.07122477,101750.0,101740.0,0.5181133]
[1762671757178,0.18469906,101750.0,101740.0,0.5181133]
[1762671757677,0.28301286,101750.0,101740.0,0.5181133]
[1762671758174,0.18469906,101750.0,101740.0,0.5181133]
[1762671759181,0.16107134,101750.0,101740.0,0.5181133]
[1762671759575,0.25938514,101750.0,101740.0,0.5181133]
[1762671762895,0.25938514,101750.0,101740.0,0.1573133]
[1762671763096,0.25938514,101750.0,101740.0,0.5181133]
[1762671763395,0.11347429,101750.0,101740.0,0.4727833]
[1762671763595,0.11347429,101750.0,101740.0,0.5181133]
[1762671763897,0.0983082,101760.0,101750.0,0.05899]
[1762671764092,0.23513473,101760.0,101750.0,0.5181038]
[1762671764284,0.13682653,101760.0,101750.0,0.5181038]
[1762671764997,0.13982653,101760.0,101750.0,0.5181038]
[1762671765192,0.14282653,101760.0,101750.0,0.5181038]
[1762671765695,0.24113063,101760.0,101750.0,0.5181038]
[1762671765994,0.14282653,101760.0,101750.0,0.5181038]
[1762671770297,0.02935224,101760.0,101750.0,0.5181038]
[1762671770598,0.006,101760.0,101750.0,0.5181038]
[1762671771403,0.003,101760.0,101750.0,0.5181038]
[1762671771600,0.00014705,101770.0,101760.0,0.1556041]
[1762671771796,0.02351313,101770.0,101760.0,0.5164041]
[1762671773103,0.02551313,101770.0,101760.0,0.5164041]
[1762671773594,0.02751313,101770.0,101760.0,0.5164041]
[1762671773997,0.14098742,101770.0,101760.0,0.5164041]
[1762671774991,0.02751313,101770.0,101760.0,0.5164041]
[1762671776099,3.13e-06,101770.0,101760.0,0.5164041]
[1762671776406,0.15693429,101790.0,101780.0,0.1581248]
[1762671776603,0.15693429,101790.0,101780.0,0.8797248]
[1762671777705,0.004,101790.0,101780.0,0.8797248]
[1762671779410,0.007,101790.0,101780.0,0.8797248]
[1762671779907,0.00014705,101800.0,101790.0,0.1581151]
[1762671780209,0.00014705,101800.0,101790.0,0.5189151]
[1762671780601,0.11347429,101820.0,101810.0,0.1580958]
[1762671780602,0.15693429,101820.0,101810.0,0.1580958]
[1762671780905,0.15693429,101820.0,101810.0,0.5188958]
[1762671781303,0.02102,101820.0,101810.0,0.8796958]
[1762671781514,0.04346,101820.0,101810.0,0.8796958]
[1762671782009,0.15708134,101830.0,101820.0,0.1580862]
[1762671782202,0.15708134,101830.0,101820.0,0.5188862]
[1762671782398,0.15708134,101830.0,101820.0,0.42064]
[1762671783197,0.15708134,101830.0,101820.0,0.5188862]
[1762671783403,0.15908134,101830.0,101820.0,0.5188862]
[1762671783812,0.25931794,101830.0,101820.0,0.5188862]
[1762671784605,0.16108134,101830.0,101820.0,0.5188862]
[1762671785204,0.00414705,101830.0,101820.0,0.5188862]
[1762671788111,0.02516705,101830.0,101820.0,0.5188862]
[1762671788312,0.04760705,101830.0,101820.0,0.5188862]
[1762671789003,0.16108134,101830.0,101820.0,0.5188862]
[1762671789611,0.11762134,101830.0,101820.0,0.5188862]
[1762671790904,0.13864134,101830.0,101820.0,0.5188862]
[1762671791304,0.11762134,101830.0,101820.0,0.5188862]
[1762671791501,0.00414705,101830.0,101820.0,0.5188862]
[1762671791705,0.13449429,101850.0,101840.0,0.1580669]
[1762671792006,0.15693429,101850.0,101840.0,0.5188669]
[1762671792505,0.13449429,101850.0,101840.0,0.5188669]
[1762671792809,0.13949429,101850.0,101840.0,0.5188669]
[1762671793012,0.14349429,101850.0,101840.0,0.5188669]
[1762671793518,0.16593429,101850.0,101840.0,0.5188669]
[1762671794601,0.12247429,101850.0,101840.0,0.5188669]
[1762671795001,0.12247429,101850.0,101840.0,0.8796669]
[1762671795211,0.009,101850.0,101840.0,0.8796669]
[1762671795404,0.1506773,101850.0,101840.0,0.8796669]
[1762671795604,0.26415159,101850.0,101840.0,0.8796669]
[1762671796416,0.26015159,101850.0,101840.0,0.8796669]
[1762671796611,0.26115159,101850.0,101840.0,0.78144]
[1762671797115,0.26115159,101850.0,101840.0,0.8796669]
[1762671797315,0.25715159,101850.0,101840.0,0.8796669]
[1762671798109,0.25615159,101850.0,101840.0,0.8796669]
[1762671798413,0.25815159,101850.0,101840.0,0.8796669]
[1762671799515,0.25815149,101850.0,101840.0,0.8796669]
[1762671800410,0.22960042,101850.0,101840.0,0.8796669]
[1762671800609,0.08792322,101850.0,101840.0,0.8796669]
[1762671800810,0.22960042,101850.0,101840.0,0.8796669]
[1762671804318,0.2524762,101850.0,101840.0,0.8796669]
[1762671806113,0.33739942,101850.0,101840.0,0.8796669]
[1762671807321,0.2524762,101850.0,101840.0,0.8796669]
[1762671808124,0.33739942,101850.0,101840.0,0.8796669]
[1762671808915,0.33739942,101850.0,101840.0,0.1580669]
[1762671809115,0.33739942,101850.0,101840.0,0.8796669]
[1762671809724,0.33739942,101850.0,101840.0,0.78144]
[1762671810124,0.33739942,101850.0,101840.0,0.8796669]
[1762671814624,0.2524762,101850.0,101840.0,0.8796669]
[1762671815133,0.33739942,101850.0,101840.0,0.8796669]
[1762671816826,0.37240101,101850.0,101840.0,0.78144]
[1762671817328,0.37240101,101850.0,101830.0,0.42007705]
[1762671817329,0.04444,101840.0,101830.0,0.42007705]
[1762671817529,0.42031214,101840.0,101830.0,0.05927705]
[1762671817729,0.96894964,101840.0,101830.0,0.02273705]
[1762671817923,0.1557864,101830.0,101820.0,0.40608]
[1762671818130,0.79729955,101830.0,101820.0,0.04528]
[1762671819024,0.90986966,101830.0,101820.0,0.04528]
[1762671819224,0.94504265,101830.0,101820.0,0.04528]
[1762671820031,0.1458361,101820.0,101810.0,0.04542705]
[1762671820220,0.81945537,101820.0,101810.0,0.04542705]
[1762671820424,0.45865537,101820.0,101810.0,0.04542705]
[1762671820620,0.87221611,101820.0,101810.0,0.04542705]
[1762671821021,0.1466957,101810.0,101800.0,0.04528]
[1762671821226,0.1528153,101800.0,101790.0,0.04535737]
[1762671821427,0.82636787,101800.0,101790.0,0.04535737]
[1762671821627,0.97393085,101800.0,101790.0,0.04535737]
[1762671821832,0.97193085,101800.0,101790.0,0.04535737]
[1762671822225,1.02469159,101800.0,101790.0,0.04535737]
[1762671822430,0.97193085,101800.0,101790.0,0.04535737]
[1762671822626,0.97193085,101800.0,101790.0,0.05928737]
[1762671823237,0.93682372,101800.0,101790.0,0.05928737]
[1762671823435,0.93682372,101800.0,101790.0,0.06028737]
[1762671826932,0.93682372,101800.0,101790.0,0.00107737]
[1762671827134,0.1422647,101780.0,101770.0,0.42069]
[1762671827338,0.31211114,101780.0,101770.0,0.42069]
[1762671827538,0.26813114,101780.0,101770.0,0.5189844]
[1762671828032,0.26824002,101780.0,101770.0,0.5189844]
[1762671828436,0.26924002,101780.0,101770.0,0.5189844]
[1762671829036,0.27124002,101780.0,101770.0,0.5189844]
[1762671829434,0.17295532,101780.0,101770.0,0.5189844]
[1762671829738,0.0880321,101780.0,101770.0,0.5189844]
[1762671832134,0.08507027,101790.0,101780.0,0.1575048]
[1762671832438,0.08507027,101790.0,101780.0,0.5183048]
[1762671833835,0.08707027,101790.0,101780.0,0.5183048]
[1762671834439,0.00014705,101790.0,101780.0,0.5183048]
[1762671835043,0.08492322,101800.0,101790.0,0.157495]
[1762671835243,0.08492322,101800.0,101790.0,0.518295]
[1762671836245,0.08592322,101800.0,101790.0,0.518295]
[1762671836429,0.00014705,101810.0,101800.0,0.1578353]
[1762671836636,0.08507027,101810.0,101800.0,0.5186353]
[1762671836834,0.00014705,101810.0,101800.0,0.5186353]
[1762671837040,0.08507027,101810.0,101800.0,0.5186353]
[1762671837540,0.00214705,101810.0,101800.0,0.5186353]
[1762671837747,0.08492322,101820.0,101810.0,0.1578257]
[1762671837933,0.08492322,101820.0,101810.0,0.5186257]
[1762671837934,0.19251644,101820.0,101810.0,0.5186257]
[1762671838137,0.29076244,101820.0,101810.0,0.5186257]
[1762671838435,0.31292244,101820.0,101810.0,0.5186257]
[1762671839944,0.04683,101820.0,101810.0,0.5186257]
[1762671840144,0.21667644,101820.0,101810.0,0.5186257]
[1762671840343,0.21867644,101820.0,101810.0,0.5186257]
[1762671841339,0.17384644,101820.0,101810.0,0.5186257]
[1762671841848,0.08892322,101820.0,101810.0,0.5186257]
[1762671844046,0.29476244,101820.0,101810.0,0.5186257]
[1762671844447,0.20983922,101820.0,101810.0,0.5186257]
[1762671845150,0.23199922,101820.0,101810.0,0.5186257]
[1762671845652,0.04883,101820.0,101810.0,0.5186257]
[1762671845952,0.004,101820.0,101810.0,0.5186257]
[1762671846343,0.08892322,101820.0,101810.0,0.5186257]
[1762671846552,0.002,101820.0,101810.0,0.5186257]
[1762671846748,0.08592322,101820.0,101810.0,0.5186257]
[1762671846947,0.08692322,101820.0,101810.0,0.5186257]
[1762671847346,0.002,101820.0,101810.0,0.60354892]
[1762671847744,0.08507027,101830.0,101820.0,0.157816]
[1762671847944,0.08507027,101830.0,101820.0,0.518616]
[1762671848139,0.03510713,101850.0,101840.0,0.01278]
[1762671848140,0.1430504,101850.0,101840.0,0.01278]
[1762671848450,0.130434,101850.0,101840.0,0.5182133]
[1762671849052,0.10759322,101850.0,101840.0,0.8790133]
[1762671849547,0.11259322,101850.0,101840.0,0.8790133]
[1762671850135,0.10759322,101850.0,101840.0,0.8790133]
[1762671850352,0.11059322,101850.0,101840.0,0.8790133]
[1762671850545,0.20881032,101850.0,101840.0,0.8790133]
[1762671850748,0.23397032,101850.0,101840.0,0.8790133]
[1762671850959,0.23397032,101850.0,101840.0,0.78079]
[1762671851144,0.31889354,101850.0,101840.0,0.78079]
[1762671851343,0.31889354,101850.0,101840.0,0.8790167]
[1762671851850,0.31889354,101850.0,101840.0,0.78079]
[1762671852152,0.32531354,101850.0,101840.0,0.78079]
[1762671852644,0.32531354,101850.0,101840.0,0.8790167]
[1762671852844,0.31889354,101850.0,101840.0,0.8790167]
[1762671853655,0.31889354,101850.0,101840.0,0.78079]
[1762671855352,0.1490471,101850.0,101840.0,0.78079]
[1762671855552,0.31889354,101850.0,101840.0,0.8790167]
[1762671856854,0.31889354,101850.0,101840.0,0.78079]
[1762671857948,0.34813918,101850.0,101840.0,0.05919]
[1762671858154,0.34813918,101850.0,101840.0,0.04641]
[1762671858345,0.34813918,101850.0,101840.0,0.02328]
[1762671858745,0.49600695,101850.0,101840.0,0.02328]
[1762671859050,0.85680695,101850.0,101840.0,0.02328]
[1762671862055,0.1430567,101840.0,101830.0,0.42013705]
[1762671862249,0.33572878,101840.0,101830.0,0.42013705]
[1762671862456,0.2791614,101840.0,101830.0,0.42013705]
[1762671863848,0.2811614,101840.0,101830.0,0.42013705]
[1762671864556,0.2831614,101840.0,101830.0,0.42013705]
[1762671865455,0.16988234,101840.0,101830.0,0.42013705]
[1762671865655,0.2831614,101840.0,101830.0,0.42013705]
[1762671867161,0.2831614,101840.0,101830.0,0.51837345]
[1762671867755,0.40946046,101840.0,101830.0,0.42013705]
[1762671868356,0.77026046,101840.0,101830.0,0.04655705]
[1762671873559,0.53068234,101840.0,101830.0,0.15864345]
[1762671873861,0.2831614,101840.0,101830.0,0.51944345]
[1762671874460,0.11327906,101840.0,101830.0,0.47303345]
[1762671874656,0.11327906,101840.0,101830.0,0.51744345]
[1762671874958,0.16860665,101860.0,101830.0,0.47303345]
[1762671875165,0.21150576,101840.0,101830.0,0.51744345]
[1762671875364,0.21150576,101840.0,101830.0,0.87824345]
[1762671876161,0.11327906,101840.0,101830.0,0.87824345]
[1762671877166,0.21150576,101840.0,101830.0,0.87824345]
[1762671877367,0.098217,101860.0,101830.0,0.83383345]
[1762671877559,0.21150576,101840.0,101830.0,0.05840705]
[1762671877758,0.32478482,101840.0,101830.0,0.05840705]
[1762671878266,0.32578482,101840.0,101830.0,0.78000705]
[1762671879365,0.32678482,101840.0,101830.0,0.78000705]
[1762671880769,0.47424432,101840.0,101830.0,0.75777705]
[1762671881062,0.2476862,101840.0,101830.0,0.73559705]
[1762671881262,0.32478482,101840.0,101830.0,0.75777705]
[1762671881566,0.47225344,101840.0,101830.0,0.78000705]
[1762671882766,0.35897438,101840.0,101830.0,0.78000705]
[1762671883158,0.21150576,101840.0,101830.0,0.87824335]
[1762671884169,0.0982267,101840.0,101830.0,0.87824335]
[1762671884467,0.21150576,101840.0,101830.0,0.87824335]
[1762671885259,0.24160576,101840.0,101830.0,0.87824335]
[1762671885459,0.27170576,101840.0,101830.0,0.87824335]
[1762671886469,0.29407546,101840.0,101830.0,0.87824335]
[1762671887064,0.0223697,101840.0,101830.0,0.87824335]
[1762671887268,0.13564876,101840.0,101830.0,0.87824335]
[1762671887656,0.13564876,101840.0,101830.0,0.87708027]
[1762671890264,0.13564876,101840.0,101830.0,0.87808027]
[1762671891965,0.0223697,101840.0,101830.0,0.87808027]
[1762671892166,0.13564876,101840.0,101830.0,0.87808027]
[1762671892671,0.11342611,101850.0,101840.0,0.2070467]
[1762671892871,0.11342611,101850.0,101840.0,0.5678467]
[1762671893768,0.14454611,101850.0,101840.0,0.5678467]
[1762671893971,0.14554611,101850.0,101840.0,0.5678467]
[1762671897376,0.11442611,101850.0,101840.0,0.5678467]
[1762671898167,0.00114705,101850.0,101840.0,0.5678467]
[1762671898774,0.00014705,101850.0,101840.0,0.5678467]
[1762671899165,0.09836415,101850.0,101840.0,0.5678467]
[1762671899867,0.09836415,101850.0,101840.0,0.5688467]
[1762671900164,0.21164321,101850.0,101840.0,0.5688467]
[1762671900572,0.21164321,101850.0,101840.0,0.47062]
[1762671900573,0.26704321,101850.0,101840.0,0.47062]
[1762671901874,0.26804321,101850.0,101840.0,0.47062]
[1762671902378,0.26804321,101850.0,101840.0,0.46962]
[1762671903473,0.26804321,101850.0,101840.0,0.3608]
[1762671903474,0.58134287,101850.0,101840.0,0.3608]
[1762671903673,0.07045,101840.0,101830.0,0.3608]
[1762671903865,0.29700812,101840.0,101830.0,0.3608]
[1762671904070,0.49702872,101840.0,101830.0,0.3608]
[1762671904368,0.49702872,101840.0,101830.0,0.40245]
[1762671904575,0.53224565,101840.0,101830.0,0.44431]
[1762671904771,0.53944584,101840.0,101830.0,0.46928]
[1762671905676,0.42616678,101840.0,101830.0,0.5685163]
[1762671905877,0.37428687,101840.0,101830.0,0.47028]
[1762671906183,0.37428687,101840.0,101830.0,0.46928]
[1762671906979,0.48756593,101840.0,101830.0,0.46928]
[1762671907477,0.37428687,101840.0,101830.0,0.46928]
[1762671908277,0.37428687,101840.0,101830.0,0.5675164]
[1762671909271,0.37428687,101840.0,101830.0,0.46928]
[1762671910081,0.37428687,101840.0,101830.0,0.5675163]
[1762671912483,0.31136994,101840.0,101830.0,0.5675163]
[1762671912682,0.40959664,101840.0,101830.0,0.5675163]
[1762671912981,0.43729664,101840.0,101830.0,0.46928]
[1762671913375,0.5505757,101840.0,101830.0,0.46928]
[1762671914683,0.58579263,101840.0,101830.0,0.46928]
[1762671924491,0.61416464,101840.0,101830.0,0.46928]
[1762671926986,0.66704455,101840.0,101830.0,0.46928]
[1762671927385,0.6667771,101840.0,101830.0,0.46928]
[1762671928181,0.58180039,101840.0,101830.0,0.46928]
[1762671928387,0.52892048,101840.0,101830.0,0.46928]
[1762671929280,0.58180039,101840.0,101830.0,0.46928]
[1762671929786,0.41184697,101840.0,101830.0,0.46928]
[1762671929979,0.58180039,101840.0,101830.0,0.46928]
[1762671930285,0.4346597,101840.0,101830.0,0.5675164]
[1762671930780,0.38177979,101840.0,101830.0,0.5675164]
[1762671931394,0.4346597,101840.0,101830.0,0.5675164]
[1762671931992,0.14317638,101840.0,101830.0,0.5675164]
[1762671932188,0.02298274,101840.0,101830.0,0.5675164]
[1762671932389,0.02298274,101840.0,101830.0,1.25249311]
[1762671932791,0.10795945,101840.0,101830.0,1.25249311]
[1762671932994,0.08597671,101840.0,101830.0,1.25249311]
[1762671933197,0.10798983,101840.0,101830.0,1.30547717]
[1762671933395,0.10798141,101840.0,101830.0,1.30547717]